[Event "Tata Steel-A 80th"]
[Site "Wijk aan Zee"]
[Date "2018.01.23"]
[Round "9"]
[White "Caruana, Fabiano"]
[Black "Adhiban, Baskaran"]
[Result "1/2-1/2"]
[ECO "E71"]
[WhiteElo "2811"]
[BlackElo "2655"]
[Annotator "Fernandez,D"]
[PlyCount "121"]
[EventDate "2018.01.13"]
[EventType "tourn"]
[EventRounds "13"]
[EventCountry "NED"]
[EventCategory "20"]
[SourceTitle "CBM 183"]
[Source "ChessBase"]
[SourceDate "2018.03.14"]
[SourceVersion "1"]
[SourceVersionDate "2018.03.14"]
[SourceQuality "1"]
[TimeControl "40/6000+30:20/3000+30:900+30"]

1. c4 {[%emt 0:00:00]} Nf6 {[%emt 0:00:58]} 2. Nc3 {[%emt 0:00:00]} g6 {
[%emt 0:01:02]} 3. e4 {[%emt 0:00:14] The Anti-Grьnfeld move order, but
presumably Black had no intention of playing anything other than a King's
Indian anyway.} d6 {[%emt 0:01:32]} 4. d4 {[%emt 0:00:15]} Bg7 {[%emt 0:00:05]}
5. h3 {[%emt 0:00:05]} Na6 {[%emt 0:02:36]} 6. Be3 {[%emt 0:01:53]} O-O {
[%emt 0:03:11]} 7. g4 {[%emt 0:08:33]} (7. Nf3 {led surprisingly quickly to an
unfavourable position in a predecessor by the same player.} c6 8. Rc1 e5 9. d5
cxd5 (9... Nc5 $5) 10. cxd5 $14 {Nepomniachtchi,I-Adhiban,B Tbilisi 2017,
where the position was already hard to play for Black, and this is not just
the standard machine dislike of the King's Indian!}) 7... c5 {[%emt 0:11:07]
Gawain Jones chose an approach with ...e5 instead, earlier in this event.} 8.
Nge2 {[%emt 0:02:42]} b6 $5 {[%emt 0:27:00] Not a machine top choice, but the
only move to play a substantially different position from the ones after ...
cxd4, ...Nd7, et cetera, which are just mangled Maroczy binds.} 9. e5 {[%emt 0:
20:40]} (9. Bg2 Bb7 10. d5 Nc7 11. O-O Nd7 {would have been the principled
continuation from both sides - Black will manage to arrange a plausible ...b5,
...e6 or ...f5 break in the near future and thus has a fully playable game.})
9... Ne8 {[%emt 0:04:47] Now, as in the classic game Letelier-Fischer, White's
centre appears to be on the brink of being detonated.} 10. Bg2 {[%emt 0:04:47]}
Rb8 {[%emt 0:00:49]} 11. O-O {[%emt 0:11:11]} Bb7 {[%emt 0:02:29]} 12. Bxb7 {
[%emt 0:12:01]} (12. f4 Bxg2 13. Kxg2 Qc7 {will not hold up White's centre for
long. Ideas for Black include not only ...cxd4 but also ...Qb7 and ...Nac7.})
12... Rxb7 {[%emt 0:00:01]} 13. Qa4 {[%emt 0:00:09]} Nec7 $6 {[%emt 0:00:46]} (
13... Nb4 {was more convincing, if a bit inhuman: after} 14. a3 $6 Nd3 $1 $15 {
White's centre is toast. So he must voluntarily dismantle it with 14.exd6 or
similar.}) 14. exd6 {[%emt 0:03:09]} exd6 {[%emt 0:04:13]} 15. Rad1 {[%emt 0:
04:48]} Qh4 {[%emt 0:12:01]} (15... Qe8 16. Qxe8 Rxe8 17. Rd2 $14 {is very
comfortable for White, because his centre is even nicer than in the game.}) 16.
Kg2 {[%emt 0:02:53]} f5 {[%emt 0:01:05]} 17. f3 {[%emt 0:06:57] The situation
has now stabilised and seems to be marginally in White's favour.} Qe7 {[%emt 0:
22:52]} 18. Bf2 {[%emt 0:02:36]} Qe8 {[%emt 0:02:18]} (18... Nb4 {was again
the move, resting upon the slightly awkward-looking tactical nuance} 19. a3 Na2
$1 $11) 19. Qxe8 {[%emt 0:02:42]} Nxe8 {[%emt 0:00:03]} 20. g5 {[%emt 0:10:06]}
Nec7 {[%emt 0:02:09]} 21. Bg3 {[%emt 0:02:52]} Ne6 {[%emt 0:04:40]} (21... b5 {
was maybe the last chance for Black to try and claim an opening success.} 22.
Bxd6 Re8 23. dxc5 b4 {and amidst significant complications Black seems to be
completely fine.}) 22. d5 {[%emt 0:03:02]} Nxg5 {[%emt 0:00:37]} 23. Bxd6 {
[%emt 0:00:05]} Rd8 {[%emt 0:01:28]} 24. Bg3 $14 {[%emt 0:00:05]} Nf7 {[%emt 0:
00:56]} 25. Nf4 {[%emt 0:02:47]} Bxc3 {[%emt 0:01:44]} 26. bxc3 {[%emt 0:00:04]
} Nd6 {[%emt 0:00:09]} 27. Ne6 {[%emt 0:01:21]} Rdd7 {[%emt 0:00:01]} 28. Bxd6
{[%emt 0:00:10]} Rxd6 {[%emt 0:00:01]} 29. Rfe1 {[%emt 0:01:09]} Nc7 {[%emt 0:
00:53]} 30. Nf4 {[%emt 0:04:16]} (30. Nxc7 Rxc7 31. Re5 {would have been my
choice, because reputation aside, rook endings offer no worse winning chances
than other kinds of ending with the same size of advantage!}) 30... Kf8 {
[%emt 0:01:44]} 31. a4 {[%emt 0:00:05]} a6 {[%emt 0:01:13]} 32. Nd3 {[%emt 0:
02:46]} Rb8 {[%emt 0:00:21]} 33. Re5 {[%emt 0:01:12]} (33. Ne5 $16) 33... b5 {
[%emt 0:00:14] White is now on the verge of losing control of the situation.}
34. Nxc5 $6 {[%emt 0:00:23]} (34. Nb2 $14 {just about retained a measure of
control; White is going to get the c4-square for his knight. For instance:} Kf7
35. cxb5 axb5 36. axb5 Nxb5 37. Nc4 {and the technical battle continues.})
34... bxc4 {[%emt 0:00:05]} 35. Rd4 {[%emt 0:00:13]} Kf7 {[%emt 0:01:34]} 36.
Kg3 {[%emt 0:00:36]} Rb1 {[%emt 0:00:34]} (36... Re8 {was much safer; White
has no way to win a pawn with or without compensation.}) 37. Rxc4 {[%emt 0:00:
34]} Rxd5 {[%emt 0:00:55]} 38. Rxd5 {[%emt 0:00:53]} Nxd5 {[%emt 0:00:01]} 39.
Nxa6 {[%emt 0:00:06] Now the position is still broadly speaking equal, but
there is an imbalance, and it is often much harder to prove compensation than
to fight against it, particularly in simplified positions.} Rc1 {[%emt 0:01:01]
} (39... Rg1+ 40. Kf2 Ra1 $11 {was apparently the way to go, intending ...Ra3,
and the pawn should be coming home.}) 40. a5 $1 {[%emt 0:00:00]} (40. Nb4 Nxc3
41. Kh4 Rb1 $11 {escapes.}) 40... Nxc3 $6 {[%emt 0:00:35]} (40... g5 $5 41. Nb4
f4+ 42. Kf2 Nxb4 43. Rxb4 Rc2+ $1 44. Ke1 Rxc3 45. Ra4 {and now the rook
endgame would be unpleasant were it not for} Rxf3 $1 $11) 41. Kh4 {[%emt 0:13:
41]} (41. Rc7+ Ke6 $1 42. Rc6+ Ke5 $1 43. Kh4 $14 {might be interesting,
forestalling the idea seen in the game (i.e. ...h6 and ...g5.)}) 41... h6 {
[%emt 0:11:54] The game is still within the drawing margin, but Black is
really cutting it fine.} 42. Nc5 {[%emt 0:09:03]} g5+ {[%emt 0:16:57]} 43. Kh5
{[%emt 0:00:15]} Rh1 {[%emt 0:00:04]} 44. Kxh6 {[%emt 0:00:11]} Rxh3+ {[%emt 0:
00:10]} 45. Kxg5 {[%emt 0:00:05]} Rxf3 {[%emt 0:00:06] Home and dry.} 46. a6 {
[%emt 0:00:19]} Ne4+ {[%emt 0:01:46]} 47. Nxe4 {[%emt 0:00:31]} fxe4 {[%emt 0:
00:08]} 48. Ra4 {[%emt 0:04:24]} Rg3+ {[%emt 0:00:53]} 49. Kf5 {[%emt 0:00:32]}
Rg8 {[%emt 0:00:20]} 50. Rxe4 {[%emt 0:03:26]} Rh8 {[%emt 0:02:56]} 51. Re6 {
[%emt 0:08:21]} Rh5+ {[%emt 0:03:22]} 52. Kg4 {[%emt 0:00:12]} Ra5 {[%emt 0:02:
31]} 53. Rh6 {[%emt 0:00:28]} Kg7 {[%emt 0:00:03]} 54. Rb6 {[%emt 0:00:06]} Kf7
{[%emt 0:00:03]} 55. Kf4 {[%emt 0:00:46]} Ke7 {[%emt 0:00:05]} 56. Rh6 {
[%emt 0:00:12]} Kd7 {[%emt 0:00:18]} 57. a7 {[%emt 0:00:17]} Kc7 {[%emt 0:00:
05]} 58. Rh8 {[%emt 0:00:05]} Rxa7 {[%emt 0:00:04]} 59. Rh7+ {[%emt 0:00:04]}
Kb6 {[%emt 0:00:02]} 60. Rxa7 {[%emt 0:00:00]} Kxa7 61. Ke4 1/2-1/2

[Event "Tata Steel-A 80th"]
[Site "Wijk aan Zee"]
[Date "2018.01.23"]
[Round "9"]
[White "Jones, Gawain C B"]
[Black "Hou, Yifan"]
[Result "1/2-1/2"]
[ECO "E05"]
[WhiteElo "2640"]
[BlackElo "2680"]
[Annotator "Fernandez,D"]
[PlyCount "130"]
[EventDate "2018.01.13"]
[EventType "tourn"]
[EventRounds "13"]
[EventCountry "NED"]
[EventCategory "20"]
[SourceTitle "CBM 183"]
[Source "ChessBase"]
[SourceDate "2018.03.14"]
[SourceVersion "1"]
[SourceVersionDate "2018.03.14"]
[SourceQuality "1"]
[TimeControl "40/6000+30:20/3000+30:900+30"]

1. c4 {[%emt 0:00:00]} e6 {[%emt 0:01:20]} 2. g3 {[%emt 0:00:05]} Nf6 {[%emt 0:
00:06]} 3. Bg2 {[%emt 0:00:04]} d5 {[%emt 0:00:06]} 4. Nf3 {[%emt 0:00:04]} Be7
{[%emt 0:00:35]} 5. O-O {[%emt 0:00:08]} O-O {[%emt 0:00:04]} 6. d4 {[%emt 0:
00:08]} dxc4 {[%emt 0:00:04]} 7. Ne5 {[%emt 0:00:16] Gawain Jones departs from
his usual 1.e4 fare and plays a topical Catalan.} Nc6 {[%emt 0:00:06]} 8. Nxc6
{[%emt 0:00:09]} bxc6 {[%emt 0:00:05]} 9. Na3 {[%emt 0:00:06]} Bxa3 {[%emt 0:
00:15]} 10. bxa3 {[%emt 0:00:06]} Ba6 {[%emt 0:00:08] Right now this is
fashionable.} (10... Nd5 11. Qa4 Nb6 12. Qa5 (12. Qxc6 Rb8 {is another
significant line, and I think Black is more or less fine here.}) 12... Bb7 13.
Rd1 Qc8 14. Rb1 Rd8 15. e4 Ba6 $1 $132 {Howell,D-Speelman,J England 2017,
Black maintained equality here. It is a fair bet that White knew about this
game and maybe even that Black anticipated he would...}) 11. a4 {[%emt 0:00:29]
} Qc8 $6 $146 {[%emt 0:14:57] This novelty commits to an exchange sacrifice,
which may not end up working out well.} (11... Qd6 {was a sensible move in a
predecessor game, which Black may have known about.} 12. Qd2 (12. e4 Qb4 13.
Qc2 Rab8 $132) 12... Rfb8 13. Qa5 Rb6 14. Re1 Bb7 (14... Qxd4 $5 {is also
playable}) 15. Qc3 Qb4 16. Qxb4 Rxb4 17. Bd2 Rb2 18. Bc3 Rc2 19. Rec1 Rxc1+ 20.
Rxc1 Nd5 $11 {Wang,Y-Zhou,J Xinghua Jiangsu 2011}) 12. Ba3 {[%emt 0:02:41]} Rd8
{[%emt 0:00:52]} 13. Be7 {[%emt 0:06:08]} Rd5 $5 {[%emt 0:04:10]} (13... Rd6 $5
$14 {could be the best way to give up the exchange, which in fact White is not
encouraged to take.}) 14. Bxf6 {[%emt 0:15:40]} gxf6 {[%emt 0:00:06]} 15. Bxd5
{[%emt 0:00:05]} cxd5 {[%emt 0:00:04]} 16. e4 $1 {[%emt 0:04:30]} dxe4 {
[%emt 0:10:18]} 17. Qg4+ {[%emt 0:00:27] Now White has a material advantage,
and whatever parallel one wants to draw with the ...b5 QGA exchange sacrifice
line or whatever, he stands better.} Kf8 {[%emt 0:00:06]} 18. Qxe4 {[%emt 0:00:
50]} Bb7 {[%emt 0:00:04]} (18... Qb7 $5 19. Qxh7 Qd5 $14 {offers slightly more
interesting compensation}) 19. Qxh7 {[%emt 0:02:40]} Qd7 {[%emt 0:00:09]} 20.
Qh6+ {[%emt 0:11:22]} (20. Qh4 $1 Ke7 21. Rab1 Qd5 22. f3 $16 {was concretely
the way to do it. White need not shrink from Qe4 in what follows.}) 20... Ke7 {
[%emt 0:00:06]} 21. Qe3 {[%emt 0:00:48]} Qxa4 {[%emt 0:02:24]} 22. Rab1 {
[%emt 0:09:14]} Bd5 $14 {[%emt 0:00:11] Black seems to have broadly speaking
got things back on track. The practical problems caused by the long diagonal
are augmented by the fact that Black has a pawn for the exchange now.} 23. Rb2
{[%emt 0:03:49]} Rh8 {[%emt 0:01:36]} 24. Qc3 {[%emt 0:01:52]} a5 {[%emt 0:02:
14]} 25. f3 {[%emt 0:03:05]} Kd7 {[%emt 0:05:42]} 26. Rc1 {[%emt 0:06:48]} Ra8
$6 {[%emt 0:06:37] A slightly strange move, unless it occurs to you that Black
might have been concerned about the odd-looking idea of Rb3-a3.} (26... f5 {
was more natural. Now} 27. Rb3 $6 {is nothing in particular after} Qxa2 $1 {
due to the threat to h2.} 28. Rb2 Qa4 $15) 27. Qe3 {[%emt 0:03:57]} Rg8 {
[%emt 0:01:01]} 28. Kg2 {[%emt 0:02:52]} f5 {[%emt 0:12:07]} 29. Kf2 {[%emt 0:
05:54]} Rh8 {[%emt 0:10:49]} 30. Ke1 {[%emt 0:01:12]} Qc6 {[%emt 0:12:19]} 31.
Rc3 {[%emt 0:00:41]} Qa8 {[%emt 0:02:12]} 32. Qe2 {[%emt 0:08:22]} Qa7 {
[%emt 0:10:15]} 33. Qd1 {[%emt 0:03:13]} e5 {[%emt 0:11:36]} (33... f4 $5 $44 {
kept the tension going longer, and thus might have stood better chances
against a White player who, it seems, might have been making some slightly
sub-optimal calls.}) 34. Qa4+ {[%emt 0:00:57]} Kc8 {[%emt 0:00:01]} 35. Rxc4 {
[%emt 0:00:51] White does not miss his chance to clarify the position at the
cost of reinstating material parity.} Bxc4 {[%emt 0:00:26]} 36. Qxc4 {[%emt 0:
00:06]} Rd8 {[%emt 0:00:03]} 37. Kf1 {[%emt 0:12:08]} (37. Qb5 $5 Rxd4 38. Qxe5
$14) 37... Qxd4 {[%emt 0:03:42]} 38. Qa6+ {[%emt 0:01:04]} (38. Qxd4 $5 Rxd4
39. h4 $44) 38... Kd7 {[%emt 0:00:01]} 39. Qb5+ {[%emt 0:01:06]} Ke7 {[%emt 0:
00:53] Black now plays for a win!} 40. Kg2 {[%emt 0:00:00]} Rd5 {[%emt 0:01:33]
} 41. Qe2 {[%emt 0:08:26]} Kf6 {[%emt 0:10:06]} 42. Rc2 {[%emt 0:02:55]} Qb4 {
[%emt 0:02:24]} (42... c5 $17 {was completely natural and probably winning,
and would have been a good culmination to the strategy begun with ...Rd5.}) 43.
Qe3 {[%emt 0:07:56]} c5 {[%emt 0:14:58]} 44. Qh6+ {[%emt 0:15:10]} Ke7 {
[%emt 0:00:06]} 45. Re2 {[%emt 0:01:52] Now White is in some sense 'in', and
there is compensation again.} Qb5 {[%emt 0:04:17]} 46. Rf2 {[%emt 0:03:20]} Qb8
{[%emt 0:04:58]} 47. Qg5+ {[%emt 0:02:24]} Ke6 {[%emt 0:00:05]} 48. g4 $1 {
[%emt 0:00:41]} f4 {[%emt 0:05:59]} 49. Qf5+ {[%emt 0:01:28]} Ke7 {[%emt 0:00:
06]} 50. Re2 {[%emt 0:00:55]} Kf8 {[%emt 0:02:58]} 51. Qf6 {[%emt 0:01:12]} Qd6
{[%emt 0:01:49] Black has to give this back to alleviate some of the pressure.
But after this, there are close to no winning chances- for either side.} 52.
Qxd6+ {[%emt 0:00:24]} Rxd6 {[%emt 0:00:04]} 53. Rxe5 {[%emt 0:00:04]} Rd2+ {
[%emt 0:00:04]} 54. Kh3 {[%emt 0:00:29]} Rxa2 {[%emt 0:00:07]} 55. Rxc5 {
[%emt 0:01:09]} Ra3 {[%emt 0:00:06]} 56. Kh4 {[%emt 0:01:45]} Rxf3 {[%emt 0:01:
40]} 57. Rxa5 {[%emt 0:00:19]} Rf2 {[%emt 0:00:10]} 58. h3 {[%emt 0:00:23]} Rf3
{[%emt 0:00:06]} 59. Rh5 {[%emt 0:04:00]} Ra3 {[%emt 0:00:24]} 60. Rf5 {
[%emt 0:00:00]} Rf3 {[%emt 0:00:05]} 61. Rf6 {[%emt 0:00:58]} Kg7 {[%emt 0:01:
17]} 62. g5 {[%emt 0:00:13]} Kg8 {[%emt 0:00:31]} 63. Ra6 {[%emt 0:02:03]} Kg7
{[%emt 0:00:21]} 64. Rf6 {[%emt 0:00:13]} Kg8 {[%emt 0:00:06]} 65. Rh6 {
[%emt 0:00:06]} Rg3 {[%emt 0:00:16]} 1/2-1/2

[Event "Tata Steel-A 80th"]
[Site "Wijk aan Zee"]
[Date "2018.01.23"]
[Round "9"]
[White "Karjakin, Sergey"]
[Black "Wei, Yi"]
[Result "1/2-1/2"]
[ECO "E11"]
[WhiteElo "2753"]
[BlackElo "2743"]
[Annotator "Fernandez,D"]
[PlyCount "71"]
[EventDate "2018.01.13"]
[EventType "tourn"]
[EventRounds "13"]
[EventCountry "NED"]
[EventCategory "20"]
[SourceTitle "CBM 183"]
[Source "ChessBase"]
[SourceDate "2018.03.14"]
[SourceVersion "1"]
[SourceVersionDate "2018.03.14"]
[SourceQuality "1"]
[TimeControl "40/6000+30:20/3000+30:900+30"]

1. d4 {[%emt 0:00:00]} d5 {[%emt 0:00:09]} 2. c4 {[%emt 0:00:23]} e6 {[%emt 0:
00:11]} 3. Nf3 {[%emt 0:01:35]} Nf6 {[%emt 0:00:17]} 4. g3 {[%emt 0:00:04]}
Bb4+ {[%emt 0:01:09]} 5. Bd2 {[%emt 0:00:38]} Be7 {[%emt 0:00:12]} 6. Bg2 {
[%emt 0:00:05]} O-O {[%emt 0:00:08]} 7. O-O {[%emt 0:00:05]} Nbd7 {[%emt 0:00:
16]} (7... c6 {is the main move, and it has recently become fashionable to try
and make something of White's bishop positioning with} 8. Bc3 $5 {which
contains some interesting points although 8...Ne4 should equalise.}) 8. Qc2 {
[%emt 0:03:22]} (8. Na3 $5 {Aronian,L-Karjakin,S London 2017, was an
interesting new direction.}) 8... c6 {[%emt 0:00:54]} 9. Rc1 {[%emt 0:01:51]} (
9. Bf4 {looks the most constructive, but the standard move-repetition offer}
Nh5 {forces White to then think of something new.}) 9... b6 {[%emt 0:02:09]} (
9... Ne4 {might look natural, but concretely here White does not need to worry
about the threatened swap, e.g.} 10. a4 Nxd2 11. Nbxd2 a5 12. e4 {with a space
advantage.}) 10. cxd5 {[%emt 0:00:18]} cxd5 {[%emt 0:00:09]} 11. Bf4 {[%emt 0:
00:07]} Bb7 {[%emt 0:15:56]} 12. Qb3 {[%emt 0:00:12]} (12. Qa4 {was the path
followed by a noteworthy predecessor.} a6 (12... Rc8 $1 {improves, e.g.} 13.
Rxc8 Qxc8 14. Na3 a6 15. Rc1 Qa8 $11) 13. Rc7 $5 (13. Nbd2 Rc8 14. Qd1 Nh5 15.
Rxc8 Bxc8 16. Rc1 Nxf4 17. gxf4 Bb7 18. e3 Qb8 $11 {Ghaem Maghami,E-Wei,Y
Tashkent 2016}) 13... Rb8 (13... e5 14. dxe5 Qxc7 15. exf6 Bd6 16. fxg7 $14)
14. Nbd2 b5 15. Qc2 Nh5 16. Rxd7 Qxd7 17. Bxb8 Rxb8 18. Ne5 Qd8 19. Nb3 $36 {
White has a very pleasant position- but the question of an advantage is a
different one.}) 12... Rc8 {[%emt 0:10:08]} 13. Rxc8 {[%emt 0:00:12]} Qxc8 {
[%emt 0:00:07]} 14. Nc3 {[%emt 0:00:04]} Nh5 {[%emt 0:04:12] A principled
reaction, but not the best.} (14... a6 15. Rc1 Qa8 16. Na4 $5 {is presumably
the wrinkle intended by 12.Qb3. White could have a little something here,
especially if Black's best is ...Qa7, but looking at some concrete details, my
opinion is that this isn't true:} b5 17. Nc5 Rc8 $1 (17... Nxc5 18. dxc5 Ne4
19. Qe3 $132) 18. Nxb7 Qxb7 $11) 15. Bg5 {[%emt 0:00:10]} Bxg5 {[%emt 0:04:29]}
16. Nxg5 {[%emt 0:00:20]} Qb8 {[%emt 0:12:23]} 17. e3 {[%emt 0:02:03]} Nhf6 {
[%emt 0:01:35]} 18. Bf1 {[%emt 0:01:05]} h6 {[%emt 0:17:17]} 19. Nf3 {[%emt 0:
00:05]} Ne4 {[%emt 0:01:19]} 20. a4 {[%emt 0:07:20]} Rc8 {[%emt 0:09:25] Now
White gets a relatively pleasant game.} (20... a6 $5 $11 {is now a good reflex,
refusing to allow pawn weaknesses.}) 21. a5 {[%emt 0:00:14]} bxa5 {[%emt 0:07:
14]} 22. Rxa5 {[%emt 0:00:58]} Bc6 {[%emt 0:00:39]} 23. Qa3 {[%emt 0:10:36]}
Rc7 {[%emt 0:00:18]} 24. Nxe4 {[%emt 0:09:49]} dxe4 {[%emt 0:00:06]} 25. Nd2
$14 {[%emt 0:00:03] With two pawn weaknesses to White's none (after b3) Black
is reduced to playing responsive chess. Thankfully for him, the position is
quite solid.} Bd5 {[%emt 0:04:03]} 26. b3 {[%emt 0:00:27]} Rb7 {[%emt 0:06:29]}
27. Ba6 {[%emt 0:09:20]} Rc7 {[%emt 0:00:07]} 28. Bc4 {[%emt 0:00:24]} Nf6 {
[%emt 0:04:43]} 29. Qd6 {[%emt 0:07:56]} Ne8 {[%emt 0:00:56]} 30. Qa3 {[%emt 0:
02:54]} (30. Qe5 Nf6 31. Rc5 Rb7 32. Qxb8+ Rxb8 33. h3 $14 {might have been my
choice, given how much easier it is to outplay someone when there are few
pieces on the board!}) 30... Nf6 {[%emt 0:00:05]} 31. Kg2 {[%emt 0:00:03]} Rb7
{[%emt 0:00:19]} 32. h3 {[%emt 0:08:09]} Kh7 {[%emt 0:00:25]} 33. Ba6 {[%emt 0:
05:49]} Rb4 {[%emt 0:00:18]} 34. Bc4 {[%emt 0:03:40]} Rb7 {[%emt 0:00:24]} 35.
Ra6 {[%emt 0:03:27]} Nd7 {[%emt 0:02:03]} 36. Ra5 {[%emt 0:11:56] Karjakin
doesn't see a way to continue the game.} (36. Qd6 Qxd6 37. Rxd6 Nb6 38. Bxd5
exd5 39. Rc6 {is still slightly interesting}) 1/2-1/2